[Event "Live Chess"]
[Site "Chess.com"]
[Date "2023.05.20"]
[Round "-"]
[White "toog"]
[Black "ItsNot_Jasper"]
[Result "1-0"]
[WhiteElo "2612"]
[BlackElo "1334"]
[TimeControl "300"]
[EndTime "13:42:20 PDT"]
[Termination "toog won by resignation"]

1. e4 {[%clk 0:04:57.2]} 1... c6 {[%clk 0:04:59.1]} 2. Nf3 {[%clk 0:04:54.1]}
2... d5 {[%clk 0:04:57.5]} 3. Nc3 {[%clk 0:04:53.3]} 3... Bg4 {[%clk 0:04:55.6]}
4. h3 {[%clk 0:04:52.2]} 4... Bxf3 {[%clk 0:04:54.8]} 5. Qxf3 {[%clk 0:04:52.1]}
5... e6 {[%clk 0:04:54.4]} 6. Be2 {[%clk 0:04:50.4]} 6... Nf6 {[%clk 0:04:52.4]}
7. O-O {[%clk 0:04:49.8]} 7... Be7 {[%clk 0:04:49.1]} 8. d3 {[%clk 0:04:48.8]}
8... O-O {[%clk 0:04:46.7]} 9. Qg3 {[%clk 0:04:47.9]} 9... Re8 {[%clk
0:04:37.3]} 10. Bh6 {[%clk 0:04:46.3]} 10... g6 {[%clk 0:04:36.8]} 11. a4 {[%clk
0:04:43.4]} 11... dxe4 {[%clk 0:04:28.7]} 12. dxe4 {[%clk 0:04:41.6]} 12... Bf8
{[%clk 0:04:23.1]} 13. Bg5 {[%clk 0:04:39.9]} 13... Bg7 {[%clk 0:04:18.4]} 14.
e5 {[%clk 0:04:37.1]} 14... h6 {[%clk 0:04:15.4]} 15. exf6 {[%clk 0:04:34.5]}
15... hxg5 {[%clk 0:04:12.2]} 16. fxg7 {[%clk 0:04:33.3]} 16... Kxg7 {[%clk
0:04:11.7]} 17. Rad1 {[%clk 0:04:30]} 17... Qb6 {[%clk 0:04:07.1]} 18. Ne4
{[%clk 0:04:23.6]} 18... Nd7 {[%clk 0:03:56.8]} 19. Rxd7 {[%clk 0:04:20.2]} 1-0

[Event "Live Chess"]
[Site "Chess.com"]
[Date "2023.05.20"]
[Round "-"]
[White "FlyingChessKestrel13"]
[Black "Duke_of_Bebington"]
[Result "1-0"]
[WhiteElo "2106"]
[BlackElo "1576"]
[TimeControl "300"]
[EndTime "13:42:31 PDT"]
[Termination "FlyingChessKestrel13 won by resignation"]

1. e4 {[%clk 0:04:56.6]} 1... e5 {[%clk 0:04:58.9]} 2. d4 {[%clk 0:04:55.2]}
2... exd4 {[%clk 0:04:57.5]} 3. c3 {[%clk 0:04:54.3]} 3... dxc3 {[%clk
0:04:56.7]} 4. Bc4 {[%clk 0:04:53.5]} 4... Nf6 {[%clk 0:04:50.3]} 5. Nxc3 {[%clk
0:04:51.7]} 5... d6 {[%clk 0:04:49.4]} 6. Nge2 {[%clk 0:04:45.7]} 6... g6 {[%clk
0:04:41.5]} 7. O-O {[%clk 0:04:44.2]} 7... Bg7 {[%clk 0:04:40.5]} 8. Qb3 {[%clk
0:04:33.3]} 8... O-O {[%clk 0:04:37.9]} 9. f4 {[%clk 0:04:31.7]} 9... Nc6 {[%clk
0:04:27.9]} 10. Bd5 {[%clk 0:04:12.3]} 10... Nxd5 {[%clk 0:04:14.7]} 11. exd5
{[%clk 0:04:09.4]} 11... Ne7 {[%clk 0:03:57.4]} 12. Ng3 {[%clk 0:04:04.5]} 12...
b6 {[%clk 0:03:47.7]} 13. Be3 {[%clk 0:04:00.1]} 13... Bb7 {[%clk 0:03:42]} 14.
Rfd1 {[%clk 0:03:59.2]} 14... Re8 {[%clk 0:03:34.7]} 15. Bf2 {[%clk 0:03:57]}
15... Qc8 {[%clk 0:03:27.8]} 16. Rac1 {[%clk 0:03:54.8]} 16... Nf5 {[%clk
0:03:18.7]} 17. Nb5 {[%clk 0:03:47.1]} 17... Nxg3 {[%clk 0:03:14.4]} 18. hxg3
{[%clk 0:03:45.8]} 18... Qf5 {[%clk 0:03:07.4]} 19. Nxc7 {[%clk 0:03:42.5]}
19... Re2 {[%clk 0:02:59.9]} 20. Nxa8 {[%clk 0:03:37.3]} 20... Rxb2 {[%clk
0:02:56.1]} 21. Qd3 {[%clk 0:03:29]} 21... Qxd3 {[%clk 0:02:43.6]} 22. Rxd3
{[%clk 0:03:27.4]} 22... Bf8 {[%clk 0:02:17]} 23. Nc7 {[%clk 0:03:16.7]} 23...
Rxa2 {[%clk 0:02:06]} 24. Rcc3 {[%clk 0:03:12.1]} 24... a6 {[%clk 0:01:59.1]}
25. Bxb6 {[%clk 0:03:06.9]} 25... Bg7 {[%clk 0:01:56.4]} 26. Ra3 {[%clk
0:03:04.9]} 26... Rb2 {[%clk 0:01:54]} 27. Bd4 {[%clk 0:03:00.9]} 27... Rb1+
{[%clk 0:01:44.1]} 28. Kh2 {[%clk 0:02:58.6]} 1-0

[Event "Live Chess"]
[Site "Chess.com"]
[Date "2023.05.20"]
[Round "-"]
[White "MarkLim1"]
[Black "chessfiction"]
[Result "0-1"]
[WhiteElo "1654"]
[BlackElo "2404"]
[TimeControl "300"]
[EndTime "13:42:31 PDT"]
[Termination "chessfiction won by resignation"]

1. d3 {[%clk 0:04:59.5]} 1... e5 {[%clk 0:04:57.3]} 2. Nf3 {[%clk 0:04:58.3]}
2... Nc6 {[%clk 0:04:55.8]} 3. g3 {[%clk 0:04:57.9]} 3... h5 {[%clk 0:04:53.9]}
4. Bg2 {[%clk 0:04:57.5]} 4... h4 {[%clk 0:04:53.8]} 5. O-O {[%clk 0:04:56.1]}
5... d5 {[%clk 0:04:51.8]} 6. c4 {[%clk 0:04:53.7]} 6... d4 {[%clk 0:04:50.3]}
7. b4 {[%clk 0:04:51.3]} 7... hxg3 {[%clk 0:04:46.7]} 8. hxg3 {[%clk 0:04:50]}
8... Bh3 {[%clk 0:04:45.8]} 9. b5 {[%clk 0:04:43.5]} 9... Nce7 {[%clk
0:04:37.4]} 10. Nxe5 {[%clk 0:04:41.3]} 10... Bxg2 {[%clk 0:04:33.3]} 11. Kxg2
{[%clk 0:04:40.3]} 11... Qd6 {[%clk 0:04:30.8]} 12. Nf3 {[%clk 0:04:38.2]} 12...
Nf6 {[%clk 0:04:27.9]} 13. Bf4 {[%clk 0:04:37]} 13... Qe6 {[%clk 0:04:27.1]} 14.
Bxc7 {[%clk 0:04:32.5]} 14... Qh3+ {[%clk 0:04:25.1]} 0-1

[Event "Live Chess"]
[Site "Chess.com"]
[Date "2023.05.20"]
[Round "-"]
[White "bristolunichess"]
[Black "Brooms1989"]
[Result "1-0"]
[WhiteElo "1824"]
[BlackElo "1018"]
[TimeControl "300"]
[EndTime "13:42:41 PDT"]
[Termination "bristolunichess won by checkmate"]

1. e4 {[%clk 0:04:56.9]} 1... e5 {[%clk 0:04:57.9]} 2. Bc4 {[%clk 0:04:54.3]}
2... Nf6 {[%clk 0:04:56.4]} 3. d3 {[%clk 0:04:52.5]} 3... Bc5 {[%clk 0:04:50.9]}
4. Ne2 {[%clk 0:04:36.1]} 4... Nc6 {[%clk 0:04:39.6]} 5. O-O {[%clk 0:04:26.9]}
5... h6 {[%clk 0:04:26.6]} 6. Nbc3 {[%clk 0:04:18.2]} 6... d6 {[%clk 0:04:21.7]}
7. Kh1 {[%clk 0:04:05.5]} 7... Ng4 {[%clk 0:04:08.5]} 8. Be3 {[%clk 0:03:36.2]}
8... Bxe3 {[%clk 0:03:57.3]} 9. fxe3 {[%clk 0:03:32.7]} 9... Nxe3 {[%clk
0:03:57.2]} 10. Bxf7+ {[%clk 0:03:30]} 10... Ke7 {[%clk 0:03:50.6]} 11. Nd5+
{[%clk 0:03:26.5]} 11... Kd7 {[%clk 0:03:49.1]} 12. Nxe3 {[%clk 0:03:22.2]}
12... Rf8 {[%clk 0:03:42.7]} 13. Bg6 {[%clk 0:03:11.1]} 13... Qe7 {[%clk
0:03:30.6]} 14. Nd5 {[%clk 0:03:05.7]} 14... Rxf1+ {[%clk 0:03:24.9]} 15. Qxf1
{[%clk 0:03:04]} 15... Nd4 {[%clk 0:03:16.8]} 16. Nxe7 {[%clk 0:03:00.4]} 16...
Kxe7 {[%clk 0:03:15.6]} 17. Qf7+ {[%clk 0:02:57]} 17... Kd8 {[%clk 0:03:14.9]}
18. Qe8# {[%clk 0:02:56.5]} 1-0

[Event "Live Chess"]
[Site "Chess.com"]
[Date "2023.05.20"]
[Round "-"]
[White "seabuck"]
[Black "Nazar_777"]
[Result "0-1"]
[WhiteElo "1851"]
[BlackElo "1606"]
[TimeControl "300"]
[EndTime "13:43:00 PDT"]
[Termination "Nazar_777 won by resignation"]

1. d4 {[%clk 0:04:57.8]} 1... e6 {[%clk 0:04:55.2]} 2. c4 {[%clk 0:04:56.7]}
2... a6 {[%clk 0:04:54.6]} 3. e4 {[%clk 0:04:52.5]} 3... h5 {[%clk 0:04:54]} 4.
Nc3 {[%clk 0:04:51.5]} 4... c5 {[%clk 0:04:53.2]} 5. d5 {[%clk 0:04:48.1]} 5...
Nf6 {[%clk 0:04:52.2]} 6. e5 {[%clk 0:04:44]} 6... Ng8 {[%clk 0:04:51.1]} 7. d6
{[%clk 0:04:39.3]} 7... b6 {[%clk 0:04:50.1]} 8. f4 {[%clk 0:04:34.6]} 8... Nh6
{[%clk 0:04:49]} 9. Nf3 {[%clk 0:04:33.3]} 9... Bb7 {[%clk 0:04:48]} 10. Bd3
{[%clk 0:04:26.8]} 10... Nc6 {[%clk 0:04:47.1]} 11. O-O {[%clk 0:04:24.1]} 11...
g6 {[%clk 0:04:45.6]} 12. Ne4 {[%clk 0:04:19.1]} 12... Bg7 {[%clk 0:04:43.7]}
13. b3 {[%clk 0:04:11]} 13... Nf5 {[%clk 0:04:42.3]} 14. Bb2 {[%clk 0:04:03.3]}
14... Qc8 {[%clk 0:04:41.2]} 15. Re1 {[%clk 0:03:57.8]} 15... h4 {[%clk
0:04:39.9]} 16. Neg5 {[%clk 0:03:53.4]} 16... Ncd4 {[%clk 0:04:30.6]} 17. Nxd4
{[%clk 0:03:47.4]} 17... cxd4 {[%clk 0:04:28.4]} 18. Bxf5 {[%clk 0:03:39.1]}
18... gxf5 {[%clk 0:04:26.6]} 19. Qxd4 {[%clk 0:03:35.7]} 19... Bh6 {[%clk
0:04:23.8]} 20. Nf3 {[%clk 0:03:24.2]} 20... Qc6 {[%clk 0:04:21.3]} 21. Re2
{[%clk 0:03:09.7]} 21... h3 {[%clk 0:04:18.6]} 22. Rf1 {[%clk 0:02:59]} 22...
Rg8 {[%clk 0:04:17.3]} 23. g3 {[%clk 0:02:54.4]} 23... Qc5 {[%clk 0:04:14.8]}
24. Qxc5 {[%clk 0:02:50.3]} 24... bxc5 {[%clk 0:04:13.8]} 25. Kf2 {[%clk
0:02:47.9]} 25... Bc6 {[%clk 0:04:11]} 26. Bc3 {[%clk 0:02:44.3]} 26... a5
{[%clk 0:04:08.8]} 27. Rb1 {[%clk 0:02:34.7]} 27... Be4 {[%clk 0:04:07.5]} 28.
Rbb2 {[%clk 0:02:30.3]} 28... Rf8 {[%clk 0:03:56.8]} 29. Nd2 {[%clk 0:02:25.2]}
29... Bc6 {[%clk 0:03:54.4]} 30. Nf3 {[%clk 0:02:16.5]} 30... Bg7 {[%clk
0:03:51.6]} 31. Bd2 {[%clk 0:02:10.5]} 31... f6 {[%clk 0:03:48.6]} 32. Bc3
{[%clk 0:02:08.2]} 32... fxe5 {[%clk 0:03:45.5]} 33. Bxe5 {[%clk 0:02:03.8]}
33... Bxe5 {[%clk 0:03:43.4]} 34. Nxe5 {[%clk 0:02:01.1]} 34... Be4 {[%clk
0:03:42.4]} 35. Red2 {[%clk 0:01:52.9]} 35... Rg8 {[%clk 0:03:38.8]} 36. Nf3
{[%clk 0:01:50.5]} 36... Kf7 {[%clk 0:03:36.4]} 37. Ng5+ {[%clk 0:01:48.5]}
37... Kf6 {[%clk 0:03:33.4]} 38. Nxe4+ {[%clk 0:01:42.9]} 38... fxe4 {[%clk
0:03:32.2]} 39. Ke3 {[%clk 0:01:42]} 39... Kf5 {[%clk 0:03:27.3]} 40. a3 {[%clk
0:01:32.3]} 40... Ra6 {[%clk 0:03:25.9]} 41. Rd1 {[%clk 0:01:30.7]} 41... Rg6
{[%clk 0:03:23.7]} 42. Rg1 {[%clk 0:01:20.9]} 42... e5 {[%clk 0:03:21.9]} 43.
Rf1 {[%clk 0:01:17]} 43... Rg4 {[%clk 0:03:19.5]} 44. Rd2 {[%clk 0:01:10.9]}
44... Ke6 {[%clk 0:03:15.7]} 45. fxe5 {[%clk 0:01:05.7]} 45... Kxe5 {[%clk
0:03:10.4]} 46. Rd5+ {[%clk 0:01:04.7]} 46... Ke6 {[%clk 0:03:08.4]} 47. Rff5
{[%clk 0:00:54.7]} 47... Rxd6 {[%clk 0:03:04.8]} 48. Rfe5+ {[%clk 0:00:52.8]}
48... Kf6 {[%clk 0:02:59]} 49. Rxe4 {[%clk 0:00:46.6]} 49... Re6 {[%clk
0:02:44.9]} 50. Rxe6+ {[%clk 0:00:40.8]} 50... dxe6 {[%clk 0:02:43.6]} 51. Rxc5
{[%clk 0:00:40]} 51... e5 {[%clk 0:02:33.3]} 52. Rxa5 {[%clk 0:00:38.1]} 52...
Kf5 {[%clk 0:02:32.4]} 53. b4 {[%clk 0:00:35.9]} 53... Re4+ {[%clk 0:02:30.1]}
54. Kf3 {[%clk 0:00:32.7]} 54... Rxc4 {[%clk 0:02:27.9]} 55. b5 {[%clk
0:00:29.7]} 55... Rc3+ {[%clk 0:02:26.5]} 56. Ke2 {[%clk 0:00:28.3]} 56... Rc2+
{[%clk 0:02:21.7]} 57. Ke3 {[%clk 0:00:27.7]} 57... Rxh2 {[%clk 0:02:20.4]} 58.
b6 {[%clk 0:00:26.9]} 58... Rb2 {[%clk 0:02:18.7]} 59. Ra6 {[%clk 0:00:24.8]}
59... h2 {[%clk 0:02:17.4]} 60. b7 {[%clk 0:00:20.7]} 60... h1=Q {[%clk
0:02:11.7]} 61. g4+ {[%clk 0:00:16.8]} 61... Kxg4 {[%clk 0:02:08.2]} 62. b8=Q
{[%clk 0:00:15.3]} 62... Rxb8 {[%clk 0:02:05.6]} 0-1

[Event "Live Chess"]
[Site "Chess.com"]
[Date "2023.05.20"]
[Round "-"]
[White "BillythekidFellowes"]
[Black "JanMur7"]
[Result "1/2-1/2"]
[WhiteElo "2036"]
[BlackElo "1983"]
[TimeControl "300"]
[EndTime "13:43:03 PDT"]
[Termination "Game drawn - insufficient material"]

1. e4 {[%clk 0:04:59.2]} 1... e5 {[%clk 0:04:58.9]} 2. Nf3 {[%clk 0:04:58.5]}
2... Nc6 {[%clk 0:04:58.2]} 3. Bc4 {[%clk 0:04:57.3]} 3... Bc5 {[%clk
0:04:57.2]} 4. c3 {[%clk 0:04:56.6]} 4... Nf6 {[%clk 0:04:56.4]} 5. d3 {[%clk
0:04:55]} 5... a6 {[%clk 0:04:55.2]} 6. Bg5 {[%clk 0:04:54.4]} 6... h6 {[%clk
0:04:54.2]} 7. Bh4 {[%clk 0:04:53.3]} 7... g5 {[%clk 0:04:53.4]} 8. Bg3 {[%clk
0:04:52.6]} 8... d6 {[%clk 0:04:52.8]} 9. Nbd2 {[%clk 0:04:51.6]} 9... Bg4
{[%clk 0:04:48.6]} 10. h3 {[%clk 0:04:50.1]} 10... Bh5 {[%clk 0:04:47.3]} 11.
Qb3 {[%clk 0:04:46.9]} 11... Na5 {[%clk 0:04:40.3]} 12. Qa4+ {[%clk 0:04:44.9]}
12... c6 {[%clk 0:04:39.2]} 13. b4 {[%clk 0:04:36.1]} 13... b5 {[%clk
0:04:38.4]} 14. Qa3 {[%clk 0:04:31.7]} 14... Nxc4 {[%clk 0:04:31.4]} 15. dxc4
{[%clk 0:04:27.8]} 15... Bb6 {[%clk 0:04:29.7]} 16. O-O {[%clk 0:04:22.3]} 16...
Bg6 {[%clk 0:04:26.1]} 17. Rfe1 {[%clk 0:04:19.9]} 17... Nh5 {[%clk 0:04:23.6]}
18. Bh2 {[%clk 0:04:12.1]} 18... Nf4 {[%clk 0:04:20.8]} 19. Bxf4 {[%clk
0:04:09.9]} 19... gxf4 {[%clk 0:04:20.2]} 20. c5 {[%clk 0:04:08.7]} 20... dxc5
{[%clk 0:04:15.4]} 21. bxc5 {[%clk 0:04:07.9]} 21... Bc7 {[%clk 0:04:13.7]} 22.
Rad1 {[%clk 0:04:06.9]} 22... Qe7 {[%clk 0:04:08.5]} 23. c4 {[%clk 0:03:59]}
23... O-O {[%clk 0:04:00.7]} 24. Qc3 {[%clk 0:03:47.1]} 24... Kh7 {[%clk
0:03:51.2]} 25. Nb3 {[%clk 0:03:40.6]} 25... Bh5 {[%clk 0:03:41.9]} 26. g4
{[%clk 0:03:04.2]} 26... fxg3 {[%clk 0:03:33.3]} 27. fxg3 {[%clk 0:03:04.1]}
27... Qe6 {[%clk 0:03:26.3]} 28. Kh2 {[%clk 0:02:46.3]} 28... Qxc4 {[%clk
0:03:15.2]} 29. Qe3 {[%clk 0:02:34.9]} 29... Qe6 {[%clk 0:03:04.6]} 30. g4
{[%clk 0:02:20.8]} 30... Bg6 {[%clk 0:03:02.4]} 31. Re2 {[%clk 0:01:54.8]} 31...
Rad8 {[%clk 0:02:48.9]} 32. Rf1 {[%clk 0:01:52.9]} 32... Rd7 {[%clk 0:02:31.8]}
33. Nh4 {[%clk 0:01:39.3]} 33... Rfd8 {[%clk 0:02:23.3]} 34. g5 {[%clk
0:01:16.1]} 34... Rd3 {[%clk 0:02:08]} 35. Qf2 {[%clk 0:00:47.1]} 35... Qxh3+
{[%clk 0:02:01.8]} 36. Kg1 {[%clk 0:00:46.1]} 36... Rg3+ {[%clk 0:01:56.5]} 37.
Ng2 {[%clk 0:00:44.8]} 37... Rxg5 {[%clk 0:01:52.2]} 38. Nd2 {[%clk 0:00:25]}
38... Bh5 {[%clk 0:01:32.2]} 39. Nf3 {[%clk 0:00:20.3]} 39... Bxf3 {[%clk
0:01:30.8]} 40. Qxf3 {[%clk 0:00:20.2]} 40... Qxf3 {[%clk 0:01:28.7]} 41. Rxf3
{[%clk 0:00:20.1]} 41... Kg7 {[%clk 0:01:24.8]} 42. Kf2 {[%clk 0:00:19.5]} 42...
Rd4 {[%clk 0:01:19]} 43. Ne3 {[%clk 0:00:19.4]} 43... Kg6 {[%clk 0:01:09.8]} 44.
Nf5 {[%clk 0:00:18.6]} 44... Rd7 {[%clk 0:01:05.7]} 45. Nh4+ {[%clk 0:00:15.6]}
45... Kh7 {[%clk 0:01:05.2]} 46. Nf5 {[%clk 0:00:15]} 46... Rh5 {[%clk
0:00:58.1]} 47. Rg3 {[%clk 0:00:12.7]} 47... Rh2+ {[%clk 0:00:55]} 48. Rg2
{[%clk 0:00:12]} 48... Rxg2+ {[%clk 0:00:53.4]} 49. Kxg2 {[%clk 0:00:11.9]}
49... Rd3 {[%clk 0:00:49.8]} 50. Kf1 {[%clk 0:00:11.4]} 50... Ba5 {[%clk
0:00:48.6]} 51. Rg2 {[%clk 0:00:10.4]} 51... Rd1+ {[%clk 0:00:47.1]} 52. Ke2
{[%clk 0:00:09.7]} 52... Rd2+ {[%clk 0:00:47]} 53. Kf3 {[%clk 0:00:09.5]} 53...
Rxg2 {[%clk 0:00:46.9]} 54. Kxg2 {[%clk 0:00:09.4]} 54... Bb4 {[%clk 0:00:45.3]}
55. Ne7 {[%clk 0:00:09.3]} 55... Bxc5 {[%clk 0:00:45.2]} 56. Nxc6 {[%clk
0:00:08.7]} 56... b4 {[%clk 0:00:41.8]} 57. Nxe5 {[%clk 0:00:07.9]} 57... Kg7
{[%clk 0:00:39.4]} 58. Nd3 {[%clk 0:00:07.8]} 58... Be7 {[%clk 0:00:38.1]} 59.
Kf3 {[%clk 0:00:07.7]} 59... a5 {[%clk 0:00:37.1]} 60. e5 {[%clk 0:00:07.6]}
60... a4 {[%clk 0:00:37]} 61. Ke4 {[%clk 0:00:07.4]} 61... b3 {[%clk 0:00:36]}
62. axb3 {[%clk 0:00:07.3]} 62... axb3 {[%clk 0:00:35.9]} 63. Nb2 {[%clk
0:00:07.2]} 63... Ba3 {[%clk 0:00:34.8]} 64. Nc4 {[%clk 0:00:07]} 64... b2
{[%clk 0:00:34.7]} 65. Nxa3 {[%clk 0:00:06.1]} 65... h5 {[%clk 0:00:32.6]} 66.
Nb1 {[%clk 0:00:06]} 66... Kg6 {[%clk 0:00:31.4]} 67. Kf4 {[%clk 0:00:05.9]}
67... f6 {[%clk 0:00:26.9]} 68. exf6 {[%clk 0:00:05.8]} 68... Kxf6 {[%clk
0:00:26.8]} 69. Kg3 {[%clk 0:00:05.2]} 69... Kg5 {[%clk 0:00:26.3]} 70. Kh3
{[%clk 0:00:04.7]} 70... h4 {[%clk 0:00:25.8]} 71. Kg2 {[%clk 0:00:04.6]} 71...
Kh5 {[%clk 0:00:25.7]} 72. Kh2 {[%clk 0:00:04.5]} 72... Kg4 {[%clk 0:00:25.2]}
73. Kg2 {[%clk 0:00:04.4]} 73... h3+ {[%clk 0:00:24.8]} 74. Kh2 {[%clk
0:00:04.3]} 74... Kh4 {[%clk 0:00:24.7]} 75. Kg1 {[%clk 0:00:04.2]} 75... Kg3
{[%clk 0:00:24.6]} 76. Kh1 {[%clk 0:00:04.1]} 76... h2 {[%clk 0:00:19.1]} 77.
Nd2 {[%clk 0:00:04]} 77... Kh3 {[%clk 0:00:17]} 78. Nf1 {[%clk 0:00:03.3]} 78...
b1=N {[%clk 0:00:08.5]} 79. Nd2 {[%clk 0:00:03.2]} 79... Nc3 {[%clk 0:00:05.5]}
80. Nf3 {[%clk 0:00:03.1]} 80... Ne4 {[%clk 0:00:04]} 81. Ng1+ {[%clk 0:00:03]}
81... Kh4 {[%clk 0:00:02.5]} 82. Nf3+ {[%clk 0:00:02.7]} 82... Kh5 {[%clk
0:00:01.3]} 83. Nxh2 {[%clk 0:00:02.6]} 1/2-1/2

[Event "Live Chess"]
[Site "Chess.com"]
[Date "2023.05.20"]
[Round "-"]
[White "Pablo_dmp"]
[Black "EdvancedChess"]
[Result "1/2-1/2"]
[WhiteElo "1882"]
[BlackElo "1902"]
[TimeControl "300"]
[EndTime "13:43:07 PDT"]
[Termination "Game drawn by repetition"]

1. e4 {[%clk 0:04:59.7]} 1... e5 {[%clk 0:04:59.2]} 2. Nc3 {[%clk 0:04:57.9]}
2... Nc6 {[%clk 0:04:59.1]} 3. Bc4 {[%clk 0:04:56.2]} 3... Nf6 {[%clk
0:04:58.6]} 4. d3 {[%clk 0:04:55.6]} 4... Bb4 {[%clk 0:04:57.5]} 5. Ne2 {[%clk
0:04:55]} 5... d6 {[%clk 0:04:56.6]} 6. a3 {[%clk 0:04:52.9]} 6... Ba5 {[%clk
0:04:55.4]} 7. b4 {[%clk 0:04:51.3]} 7... Bb6 {[%clk 0:04:54.6]} 8. Bg5 {[%clk
0:04:48.8]} 8... h6 {[%clk 0:04:53.7]} 9. Bh4 {[%clk 0:04:47.5]} 9... Be6 {[%clk
0:04:45.3]} 10. Nd5 {[%clk 0:04:44.1]} 10... Bxd5 {[%clk 0:04:44.1]} 11. exd5
{[%clk 0:04:42.8]} 11... Nd4 {[%clk 0:04:43]} 12. c3 {[%clk 0:04:39.9]} 12...
Nf5 {[%clk 0:04:36.4]} 13. Bg3 {[%clk 0:04:29.2]} 13... Nxg3 {[%clk 0:04:33.6]}
14. hxg3 {[%clk 0:04:29.1]} 14... Ng4 {[%clk 0:04:32.3]} 15. d4 {[%clk 0:04:23]}
15... Qf6 {[%clk 0:04:29.9]} 16. O-O {[%clk 0:04:10.4]} 16... exd4 {[%clk
0:04:23.6]} 17. Nxd4 {[%clk 0:04:06.4]} 17... O-O-O {[%clk 0:04:23.5]} 18. Qxg4+
{[%clk 0:04:04.7]} 18... Kb8 {[%clk 0:04:22.1]} 19. a4 {[%clk 0:04:01.4]} 19...
h5 {[%clk 0:04:19.8]} 20. Qf3 {[%clk 0:03:57.9]} 20... Bxd4 {[%clk 0:04:17.2]}
21. cxd4 {[%clk 0:03:56.6]} 21... Qxd4 {[%clk 0:04:16.1]} 22. Qd3 {[%clk
0:03:49.9]} 22... Qf6 {[%clk 0:04:13.8]} 23. b5 {[%clk 0:03:45.5]} 23... h4
{[%clk 0:04:12.4]} 24. g4 {[%clk 0:03:43.5]} 24... h3 {[%clk 0:04:11.5]} 25.
gxh3 {[%clk 0:03:42.8]} 25... Qg5 {[%clk 0:04:06]} 26. Kg2 {[%clk 0:03:40]}
26... Rdf8 {[%clk 0:04:03.1]} 27. f4 {[%clk 0:03:38.1]} 27... Qh6 {[%clk
0:03:57.8]} 28. g5 {[%clk 0:03:32.4]} 28... Qh4 {[%clk 0:03:50.2]} 29. Qg3
{[%clk 0:03:30.1]} 29... Qh5 {[%clk 0:03:49.2]} 30. Rf2 {[%clk 0:03:24.3]} 30...
f6 {[%clk 0:03:47.3]} 31. Be2 {[%clk 0:03:22.7]} 31... Qg6 {[%clk 0:03:45.7]}
32. gxf6 {[%clk 0:03:19.5]} 32... Qxf6 {[%clk 0:03:44.8]} 33. Qg5 {[%clk
0:03:16.5]} 33... Qxa1 {[%clk 0:03:43.4]} 34. Bg4 {[%clk 0:03:11.6]} 34... Qxa4
{[%clk 0:03:41.7]} 35. Qxg7 {[%clk 0:03:06.5]} 35... Qxb5 {[%clk 0:03:38.6]} 36.
Rb2 {[%clk 0:02:57.6]} 36... Qxd5+ {[%clk 0:03:35.2]} 37. Bf3 {[%clk 0:02:55.4]}
37... Qg8 {[%clk 0:03:18.4]} 38. Rxb7+ {[%clk 0:02:52.2]} 38... Kc8 {[%clk
0:03:17.2]} 39. Rxc7+ {[%clk 0:02:51.1]} 39... Kd8 {[%clk 0:03:16]} 40. Rd7+
{[%clk 0:02:45.9]} 40... Kc8 {[%clk 0:03:14.7]} 41. Rc7+ {[%clk 0:02:41.8]}
41... Kd8 {[%clk 0:03:14]} 42. Rd7+ {[%clk 0:02:33.5]} 42... Kc8 {[%clk
0:03:13.9]} 43. Rc7+ {[%clk 0:02:25]} 1/2-1/2

[Event "Live Chess"]
[Site "Chess.com"]
[Date "2023.05.20"]
[Round "-"]
[White "raminguy"]
[Black "ViktorTheCoolBoy"]
[Result "0-1"]
[WhiteElo "1964"]
[BlackElo "2498"]
[TimeControl "300"]
[EndTime "13:43:25 PDT"]
[Termination "ViktorTheCoolBoy won by resignation"]

1. d4 {[%clk 0:04:59.4]} 1... d5 {[%clk 0:04:56.9]} 2. Nc3 {[%clk 0:04:58.6]}
2... Nf6 {[%clk 0:04:54]} 3. Bf4 {[%clk 0:04:58.2]} 3... e6 {[%clk 0:04:52.3]}
4. Nb5 {[%clk 0:04:57.4]} 4... Na6 {[%clk 0:04:51]} 5. e3 {[%clk 0:04:56.4]}
5... Be7 {[%clk 0:04:49.1]} 6. h3 {[%clk 0:04:54.2]} 6... O-O {[%clk 0:04:48.1]}
7. g4 {[%clk 0:04:53.4]} 7... Ne4 {[%clk 0:04:44.8]} 8. Bd3 {[%clk 0:04:52.1]}
8... c6 {[%clk 0:04:42.5]} 9. Nc3 {[%clk 0:04:50.9]} 9... f5 {[%clk 0:04:41.5]}
10. gxf5 {[%clk 0:04:42.5]} 10... exf5 {[%clk 0:04:40.7]} 11. Nf3 {[%clk
0:04:30.5]} 11... Nc7 {[%clk 0:04:35.7]} 12. Rg1 {[%clk 0:04:28.1]} 12... Ne6
{[%clk 0:04:34.5]} 13. Bh6 {[%clk 0:04:20]} 13... Kh8 {[%clk 0:04:30.5]} 14. Bf4
{[%clk 0:04:11.8]} 14... Nxf4 {[%clk 0:04:26.1]} 15. exf4 {[%clk 0:04:11.7]}
15... Bh4 {[%clk 0:04:25.1]} 16. Bxe4 {[%clk 0:04:07.1]} 16... fxe4 {[%clk
0:04:21.3]} 17. Nxh4 {[%clk 0:03:51]} 17... Qxh4 {[%clk 0:04:21.2]} 18. Qg4
{[%clk 0:03:50.1]} 18... Bxg4 {[%clk 0:04:18.7]} 19. Rxg4 {[%clk 0:03:49.9]}
19... Qxh3 {[%clk 0:04:17.3]} 0-1